bitfinex/quotes_BTCUSD_20240905
["timestamp","ask_amount","ask_price","bid_price","bid_amount"]
[1725521829864,0.11218496,57320.0,57319.0,0.33777271]
[1725521830538,0.11218496,57320.0,57319.0,0.2083]
[1725521832855,3.50534838,57321.0,57319.0,0.2083]
[1725521833076,0.25994239,57320.0,57319.0,0.33777363]
[1725521833299,0.25994239,57320.0,57319.0,0.33778252]
[1725521833752,0.25994239,57320.0,57319.0,0.2083]
[1725521833983,0.25994239,57320.0,57319.0,0.1943]
[1725521834206,0.25994239,57320.0,57319.0,0.2013]
[1725521834689,0.25994239,57320.0,57319.0,0.1943]
[1725521834931,0.90800066,57319.0,57318.0,0.3801]
[1725521835166,1.00800066,57319.0,57318.0,0.3801]
[1725521835877,0.90800066,57319.0,57318.0,0.3801]
[1725521836101,0.90800066,57319.0,57318.0,0.4031]
[1725521836560,0.91063705,57319.0,57318.0,0.43104301]
[1725521837026,0.90963705,57319.0,57318.0,0.42904301]
[1725521837243,0.90963705,57319.0,57318.0,0.58445084]
[1725521837484,0.91063705,57319.0,57318.0,0.43104301]
[1725521837717,1.01063705,57319.0,57318.0,0.43104301]
[1725521837938,1.01163705,57319.0,57318.0,0.62524301]
[1725521838156,1.01163705,57319.0,57318.0,0.78054199]
[1725521838389,1.01063705,57319.0,57318.0,0.76652826]
[1725521838615,1.01063705,57319.0,57318.0,0.62524301]
[1725521838833,1.01163705,57319.0,57318.0,0.62524301]
[1725521839293,1.01163705,57319.0,57318.0,0.64145028]
[1725521839768,1.01163705,57319.0,57318.0,0.61550727]
[1725521840008,1.01163705,57319.0,57318.0,0.64145028]
[1725521840441,1.01991274,57319.0,57318.0,0.64145028]
[1725521840904,0.26655038,57318.0,57317.0,0.02593705]
[1725521841134,0.26655038,57318.0,57316.0,0.122129]
[1725521841352,0.27644508,57318.0,57317.0,0.0162109]
[1725521841627,0.27644508,57318.0,57317.0,0.1383379]
[1725521841858,0.27644508,57318.0,57317.0,0.16427495]
[1725521842102,0.27644508,57318.0,57317.0,0.13833676]
[1725521842339,0.27744508,57318.0,57317.0,0.33355805]
[1725521842794,0.27844508,57318.0,57317.0,0.17827239]
[1725521843010,0.27744508,57318.0,57317.0,0.44552739]
[1725521843486,0.27844508,57318.0,57317.0,0.45952739]
[1725521843928,0.27844508,57318.0,57317.0,1.28778239]
[1725521844161,0.25734508,57318.0,57317.0,1.61782625]
[1725521844616,0.25834508,57318.0,57317.0,1.58968086]
[1725521844861,0.25834508,57318.0,57317.0,1.63180914]
[1725521845100,0.25734508,57318.0,57317.0,1.61780914]
[1725521845321,0.25734508,57318.0,57317.0,1.60480914]
[1725521845583,0.25734508,57318.0,57317.0,1.61880914]
[1725521846021,0.25734508,57318.0,57317.0,1.60480914]
[1725521846260,0.25734508,57318.0,57317.0,1.61880914]
[1725521846936,0.25734508,57318.0,57317.0,1.51902028]
[1725521847160,0.25734508,57318.0,57317.0,1.53976135]
[1725521847605,0.25734508,57318.0,57317.0,1.63475095]
[1725521847823,0.25734508,57318.0,57317.0,1.61400988]
[1725521848067,0.25734508,57318.0,57317.0,1.5718816]
[1725521848333,0.25734508,57318.0,57317.0,1.61401892]
[1725521848568,0.25734508,57318.0,57317.0,1.61564892]
[1725521848806,0.25734508,57318.0,57317.0,1.63639344]
[1725521849496,0.25734508,57318.0,57317.0,1.61564892]
[1725521849731,0.0108947,57318.0,57317.0,1.61345354]
[1725521850169,0.0108947,57318.0,57317.0,1.27420894]
[1725521850409,0.0108947,57318.0,57317.0,1.24827828]
[1725521850648,0.0108947,57318.0,57317.0,1.40334558]
[1725521850878,0.0108947,57318.0,57317.0,1.27420894]
[1725521851603,0.0108947,57318.0,57317.0,1.24827828]
[1725521851825,0.0108947,57318.0,57317.0,1.23207162]
[1725521852066,0.0108947,57318.0,57317.0,1.29721362]
[1725521852550,0.0108947,57318.0,57317.0,1.05295862]
[1725521852768,0.0108947,57318.0,57317.0,1.02702508]
[1725521853004,0.0108947,57318.0,57317.0,0.78277008]
[1725521853251,0.0108947,57318.0,57317.0,1.02702508]
[1725521853703,0.0108947,57318.0,57317.0,1.05295862]
[1725521854185,1.3386947,57318.0,57317.0,1.29721362]
[1725521854668,1.3386947,57318.0,57317.0,1.29721609]
[1725521854901,1.3386947,57318.0,57317.0,1.39252167]
[1725521857141,1.3386947,57318.0,57317.0,0.64277447]
[1725521857374,1.3386947,57318.0,57317.0,0.03283941]
[1725521858063,1.3386947,57318.0,57317.0,0.01663]
[1725521858279,1.3386947,57318.0,57317.0,0.03284565]
[1725521858505,1.29495435,57317.0,57314.0,0.5]
[1725521858733,1.29495435,57317.0,57316.0,0.12927526]
[1725521858974,1.29495435,57317.0,57314.0,0.62927526]
[1725521858975,0.00812592,57316.0,57314.0,0.62927526]
[1725521859233,1.82948135,57317.0,57315.0,0.01622248]
[1725521859468,1.70735435,57317.0,57315.0,0.10344326]
[1725521859701,1.70735435,57317.0,57316.0,0.01622572]
[1725521859930,1.70735435,57317.0,57316.0,0.13366898]
[1725521859931,1.95201258,57317.0,57316.0,0.13366898]
[1725521860154,1.95201258,57317.0,57316.0,0.11966898]
[1725521860373,2.07413958,57317.0,57316.0,0.01622572]
[1725521860590,2.07513958,57317.0,57316.0,0.01622572]
[1725521861052,2.07413958,57317.0,57316.0,0.01622572]
[1725521861274,2.07513958,57317.0,57316.0,0.02922572]
[1725521861513,2.07513958,57317.0,57316.0,0.13266836]
[1725521861741,1.95647199,57317.0,57316.0,0.13266836]
[1725521861962,1.29941376,57317.0,57316.0,0.13266836]
[1725521862216,1.29841376,57317.0,57316.0,0.2166251]
[1725521862463,1.29941376,57317.0,57316.0,0.0392251]
[1725521862739,1.30561046,57317.0,57316.0,0.0392251]
[1725521862992,1.30561046,57317.0,57316.0,0.99514233]
[1725521863254,1.30561046,57317.0,57316.0,1.23940133]
[1725521863473,1.27281046,57317.0,57316.0,1.60327963]
[1725521863694,1.27181046,57317.0,57316.0,1.59027963]
[1725521863918,1.27181046,57317.0,57316.0,1.83453863]
[1725521864153,1.27281046,57317.0,57316.0,1.84753863]
[1725521864641,1.27181046,57317.0,57316.0,1.85530385]
[1725521864902,1.27081046,57317.0,57316.0,1.78235337]
[1725521865144,1.27281046,57317.0,57316.0,1.86926024]
[1725521865362,1.27181046,57317.0,57316.0,1.85826024]
[1725521865600,1.27181046,57317.0,57316.0,1.86926024]
[1725521865843,1.27181046,57317.0,57316.0,1.28152636]
[1725521865844,0.01065611,57317.0,57316.0,1.28152636]
[1725521867956,0.01065611,57317.0,57316.0,1.30449167]
[1725521868893,0.01065611,57317.0,57316.0,1.88609167]
[1725521869381,0.01065611,57317.0,57316.0,0.37225984]
[1725521869619,0.01065611,57317.0,57316.0,0.59059217]
[1725521869842,0.01065611,57317.0,57316.0,0.68876963]
[1725521870820,0.01065611,57317.0,57316.0,0.7146963]
[1725521871070,0.01065611,57317.0,57316.0,0.68877796]
[1725521871332,0.01065611,57317.0,57316.0,0.0402125]
[1725521873659,0.01065611,57317.0,57316.0,0.6180595]
[1725521873883,0.01065611,57317.0,57316.0,1.09185651]
[1725521874338,0.01065611,57317.0,57316.0,0.9369089]
[1725521874553,0.01065611,57317.0,57316.0,0.95767208]
[1725521874993,0.01065611,57317.0,57316.0,0.71341308]
[1725521875666,0.01065611,57317.0,57316.0,0.95930408]
[1725521875888,0.01147211,57317.0,57316.0,0.95930408]
[1725521876104,0.01147211,57317.0,57316.0,1.04264267]
[1725521876327,0.01147211,57317.0,57316.0,0.95930408]
[1725521876793,0.01147211,57317.0,57316.0,1.02923808]
[1725521877455,0.01147211,57317.0,57316.0,0.99588557]
[1725521877681,0.01147211,57317.0,57316.0,0.75681914]
[1725521878596,0.01147211,57317.0,57316.0,1.01307348]
[1725521879313,0.01147211,57317.0,57316.0,1.01318188]
[1725521880422,0.01147211,57317.0,57316.0,0.78385932]
[1725521880646,0.01147211,57317.0,57316.0,0.88902955]
[1725521880886,0.01147211,57317.0,57316.0,0.21965075]
[1725521881116,0.01147211,57317.0,57316.0,0.786254]
[1725521881338,0.01147211,57317.0,57316.0,0.81222708]
[1725521881775,0.01147211,57317.0,57316.0,1.04164688]
[1725521882450,0.01147211,57317.0,57316.0,1.13940084]
[1725521882674,0.01147211,57317.0,57316.0,1.18129534]
[1725521882881,0.01147211,57317.0,57316.0,1.34754004]
[1725521883101,0.01147211,57317.0,57316.0,1.37054004]
[1725521883584,0.01147211,57317.0,57316.0,1.3913136]
[1725521883787,0.01147211,57317.0,57316.0,1.47464791]
[1725521884009,0.01147211,57317.0,57316.0,1.71890691]
[1725521884920,2.40306496,57318.0,57317.0,1.384992]
[1725521885127,2.40306496,57318.0,57317.0,1.61128729]
[1725521885363,2.39017671,57318.0,57317.0,1.61128729]
[1725521885572,2.39017671,57318.0,57317.0,1.62751376]
[1725521886022,2.39017671,57318.0,57317.0,1.64828732]
[1725521886235,2.39117671,57318.0,57317.0,1.66228732]
[1725521886453,2.39217671,57318.0,57317.0,1.67628732]
[1725521886666,2.39217671,57318.0,57317.0,1.67628585]
[1725521886910,2.39217671,57318.0,57317.0,1.43203085]
[1725521887119,2.39217671,57318.0,57317.0,0.26829385]
[1725521887333,2.39217671,57318.0,57317.0,0.55134154]
[1725521887554,2.39217671,57318.0,57317.0,0.28111849]
[1725521887775,2.39217671,57318.0,57317.0,0.51062465]
[1725521888237,2.39217671,57318.0,57317.0,0.49439462]
[1725521888446,2.39217671,57318.0,57317.0,0.47362106]
[1725521888447,2.39485257,57318.0,57317.0,0.47362106]
[1725521888673,2.39485257,57318.0,57317.0,0.2441149]
[1725521888915,2.39485257,57318.0,57317.0,0.25750616]
[1725521889147,2.39485257,57318.0,57317.0,0.07021629]
[1725521889579,2.77445257,57318.0,57317.0,0.07021629]
[1725521890025,2.97265257,57318.0,57317.0,0.07021629]
[1725521890236,2.97265257,57318.0,57317.0,0.08321043]
[1725521891141,2.97165257,57318.0,57317.0,0.06921043]
[1725521891356,2.97265257,57318.0,57317.0,0.08321043]
[1725521892009,2.97265257,57318.0,57317.0,0.10401535]
[1725521892241,2.39485257,57318.0,57317.0,0.04099414]
[1725521892478,2.40096448,57318.0,57317.0,0.11701012]
[1725521892903,2.39996448,57318.0,57317.0,0.10301012]
[1725521893113,2.39996448,57318.0,57317.0,0.13008134]
[1725521893328,2.40196448,57318.0,57317.0,0.1450872]
[1725521893562,2.40196448,57318.0,57317.0,0.11801598]
[1725521894944,2.40196448,57318.0,57317.0,0.34752214]
[1725521895186,2.40196448,57318.0,57317.0,0.46964914]
[1725521895418,2.40196448,57318.0,57317.0,0.20130893]
[1725521895875,2.40196448,57318.0,57317.0,0.20130144]
[1725521896333,2.40196448,57318.0,57317.0,0.32342844]
[1725521899040,2.40196448,57318.0,57317.0,0.26366073]
[1725521899254,2.40196448,57318.0,57317.0,0.3234268]
[1725521899742,2.40196448,57318.0,57317.0,0.2012998]
[1725521899976,2.99036448,57318.0,57317.0,0.34760628]
[1725521900214,2.99036448,57318.0,57317.0,0.14507899]
[1725521900432,2.99036448,57318.0,57317.0,0.11800685]
[1725521901096,3.11248948,57318.0,57317.0,0.25277508]
[1725521901337,3.11248948,57318.0,57317.0,0.0712334]
[1725521902053,3.11248948,57318.0,57317.0,0.09721865]
[1725521902277,3.11248948,57318.0,57317.0,0.05824955]
[1725521902506,3.11248948,57318.0,57317.0,0.07124919]
[1725521902960,3.10948948,57318.0,57317.0,0.02924919]
[1725521903399,3.11148948,57318.0,57317.0,0.05524919]
[1725521903858,3.11048948,57318.0,57317.0,0.04224919]
[1725521904328,3.11148948,57318.0,57317.0,0.05524919]
[1725521904545,3.35574048,57318.0,57317.0,0.05524919]
[1725521904757,3.38123903,57318.0,57317.0,0.05524919]
[1725521905516,3.38123903,57318.0,57317.0,0.04224786]
[1725521905757,3.38123903,57318.0,57317.0,0.05524598]
[1725521907111,3.62549003,57318.0,57317.0,0.05524598]
[1725521907339,3.62549003,57318.0,57317.0,0.21080241]
[1725521907792,3.62549003,57318.0,57317.0,0.21079332]
[1725521908027,3.62549003,57318.0,57317.0,0.05524598]
[1725521908721,3.86974103,57318.0,57317.0,0.03899812]
[1725521908967,3.86974103,57318.0,57317.0,0.05524813]
[1725521908968,3.97174103,57318.0,57317.0,0.05524813]
[1725521909183,3.96974103,57318.0,57317.0,0.19788112]
[1725521909461,3.96974103,57318.0,57317.0,0.14271431]
[1725521909701,3.96974103,57318.0,57317.0,0.026]
[1725521910159,3.96974103,57318.0,57317.0,0.12969374]
[1725521910407,4.15374103,57318.0,57317.0,0.12969374]
[1725521910637,3.96938498,57318.0,57317.0,0.12969374]
[1725521910856,3.72513398,57318.0,57317.0,0.12969374]
[1725521911079,3.72513398,57318.0,57317.0,0.15563298]
[1725521911995,3.72513398,57318.0,57317.0,0.15726298]
[1725521912661,3.72513398,57318.0,57317.0,0.02763]
[1725521914248,3.72513398,57318.0,57317.0,0.13126527]
[1725521914489,3.72513398,57318.0,57317.0,0.02763]
[1725521915212,3.72513398,57318.0,57317.0,0.13126672]
[1725521916147,3.72513398,57318.0,57317.0,0.1475187]
[1725521917719,3.72513398,57318.0,57317.0,0.04388198]
[1725521917930,3.72513398,57318.0,57317.0,0.14752698]
[1725521918184,3.72513398,57318.0,57317.0,0.04388198]
[1725521918405,3.72513398,57318.0,57317.0,0.12160974]
[1725521918640,3.72513398,57318.0,57317.0,0.07945512]
[1725521918867,3.96938498,57318.0,57317.0,0.07945512]
[1725521919532,3.96838498,57318.0,57317.0,0.06645512]
[1725521919774,3.96738498,57318.0,57317.0,0.05345512]
[1725521919992,3.97038498,57318.0,57317.0,0.06645512]
[1725521920658,4.15538498,57318.0,57317.0,0.07945512]
[1725521921357,4.15538498,57318.0,57317.0,0.02763]
[1725521924382,4.15338498,57318.0,57317.0,0.02763]
[1725521924623,3.87936253,57318.0,57317.0,0.02763]
[1725521925372,3.69736253,57318.0,57317.0,0.02763]
[1725521926066,3.69536253,57318.0,57317.0,0.02763]
[1725521926538,3.45111153,57318.0,57317.0,0.02763]
[1725521927002,3.69536253,57318.0,57317.0,0.02763]
[1725521927904,3.45111153,57318.0,57317.0,0.02763]
[1725521928356,3.45111153,57318.0,57317.0,0.04388806]
[1725521928839,3.45111153,57318.0,57317.0,0.04388623]
[1725521929052,3.45311153,57318.0,57317.0,0.04388623]
[1725521929714,3.69736253,57318.0,57317.0,0.04388623]
[1725521929933,3.45311153,57318.0,57317.0,0.04388623]
[1725521930166,3.69736253,57318.0,57317.0,0.04388623]
[1725521931040,3.69736253,57318.0,57317.0,0.02763]
[1725521932922,3.94161353,57318.0,57317.0,0.02763]
[1725521933138,4.12561353,57318.0,57317.0,0.02763]
[1725521933348,1.08532623,57314.0,57313.0,0.00163]
[1725521933557,1.79599623,57314.0,57313.0,0.00163]
[1725521933786,1.80404732,57314.0,57313.0,0.00163]
[1725521933989,2.04831532,57314.0,57313.0,0.00163]
[1725521934660,2.23331532,57314.0,57313.0,0.01363]
[1725521935118,2.23331532,57314.0,57313.0,0.00163]
[1725521935119,2.24231532,57314.0,57313.0,0.00163]
[1725521935361,2.25483125,57314.0,57313.0,0.00163]
[1725521935577,2.27483125,57314.0,57313.0,0.00163]
[1725521936040,2.27583125,57314.0,57313.0,0.00163]
[1725521936268,2.25331532,57314.0,57313.0,0.00163]
[1725521936525,2.25431532,57314.0,57313.0,0.00163]
[1725521936750,2.24431532,57314.0,57313.0,0.00163]
[1725521937907,2.24331532,57314.0,57313.0,0.00163]
[1725521938342,2.24231532,57314.0,57313.0,0.00163]
[1725521938563,2.24331532,57314.0,57313.0,0.00163]
[1725521939015,2.24231532,57314.0,57313.0,0.00163]
[1725521939266,2.24331532,57314.0,57313.0,0.00163]
[1725521939720,2.24431532,57314.0,57313.0,0.00163]
[1725521944499,2.24491489,57314.0,57313.0,0.00163]
[1725521945668,0.72171089,57314.0,57313.0,0.00163]
[1725521945908,0.96597889,57314.0,57313.0,0.00163]
[1725521946137,0.96597889,57314.0,57313.0,0.0534351]
[1725521946396,0.96597889,57314.0,57313.0,0.00163]
[1725521946397,0.96797889,57314.0,57313.0,0.00163]
[1725521946635,1.36247889,57314.0,57313.0,0.00163]
[1725521946848,1.36047889,57314.0,57313.0,0.00163]
[1725521947062,1.36147889,57314.0,57313.0,0.00163]
[1725521949539,1.60574689,57314.0,57313.0,0.00163]
[1725521949755,1.36147889,57314.0,57313.0,0.00163]
[1725521949984,1.60574689,57314.0,57313.0,0.00163]
[1725521950214,1.60774689,57314.0,57313.0,0.00163]
[1725521951129,1.79754689,57314.0,57313.0,0.00163]
[1725521952485,1.55127889,57314.0,57313.0,0.00163]
[1725521952909,1.79754689,57314.0,57313.0,0.00163]
[1725521953128,1.79554689,57314.0,57313.0,0.00163]
[1725521953789,1.79754689,57314.0,57313.0,0.00163]
[1725521954003,1.36147889,57314.0,57313.0,0.00163]
[1725521954215,0.96597889,57314.0,57313.0,0.00163]
[1725521954652,1.21024689,57314.0,57313.0,0.00163]
[1725521954863,0.96597889,57314.0,57313.0,0.00163]
[1725521955339,0.96597889,57314.0,57313.0,0.0534695]
[1725521957991,0.96597889,57314.0,57313.0,0.07938926]
[1725521958449,0.96797889,57314.0,57313.0,0.07938926]
[1725521958912,1.39554689,57314.0,57313.0,0.07938926]
[1725521959126,1.39554689,57314.0,57313.0,0.00163]
[1725521959869,1.39636189,57314.0,57313.0,0.00163]
[1725521962085,1.39836189,57314.0,57313.0,0.00163]
[1725521962298,1.39836189,57314.0,57313.0,0.0794475]
[1725521962520,1.39836189,57314.0,57313.0,0.09569916]
[1725521962737,1.21106189,57314.0,57313.0,0.09569916]
[1725521963623,1.21306189,57314.0,57313.0,0.0794475]
[1725521964097,1.21306189,57314.0,57313.0,0.00163]
[1725521964313,1.21306189,57314.0,57313.0,0.0794475]
[1725521965221,1.99276189,57314.0,57313.0,0.00163]
[1725521965691,2.23702989,57314.0,57313.0,0.00163]
[1725521965924,1.99276189,57314.0,57313.0,0.00163]
[1725521966154,1.8460271,57314.0,57313.0,0.00163]
[1725521966379,2.0902951,57314.0,57313.0,0.00163]
[1725521966615,2.0902951,57314.0,57313.0,0.05353887]
[1725521966826,2.0902951,57314.0,57313.0,0.05353533]
[1725521967038,2.0902951,57314.0,57313.0,0.00163]
[1725521968850,1.8460271,57314.0,57313.0,0.00163]
[1725521969352,0.8200591,57314.0,57313.0,0.10544775]
[1725521969581,0.8200591,57314.0,57313.0,0.12170313]
[1725521970044,0.96690461,57314.0,57313.0,0.12170313]
[1725521971138,0.72263661,57314.0,57313.0,0.01788538]
[1725521971412,0.72263661,57314.0,57313.0,0.03088969]
[1725521971869,0.96690461,57314.0,57313.0,0.03088969]
[1725521972095,0.96690461,57314.0,57313.0,0.0308824]
[1725521972569,0.96690461,57314.0,57313.0,0.01463431]
[1725521972788,0.96690461,57314.0,57313.0,0.01787815]
[1725521973024,0.23359966,57314.0,57313.0,0.20167815]
[1725521973239,0.37936864,57314.0,57313.0,0.21467667]
[1725521973686,0.62363664,57314.0,57313.0,0.21467667]
[1725521975046,0.72363664,57314.0,57313.0,0.21467667]
[1725521975924,0.72363664,57314.0,57313.0,0.20167611]
[1725521976412,0.72363664,57314.0,57313.0,0.214673]
[1725521978228,0.11146566,57314.0,57313.0,0.214673]
[1725521978455,0.11146566,57314.0,57313.0,0.601773]
[1725521979384,0.11046566,57314.0,57313.0,0.601773]
[1725521979813,0.10946566,57314.0,57313.0,0.58877611]
[1725521980059,0.10946566,57314.0,57313.0,0.60176892]
[1725521980298,0.11046566,57314.0,57313.0,0.61576892]
[1725521980534,0.10946566,57314.0,57313.0,0.60176892]
[1725521980730,0.10946566,57314.0,57313.0,0.61576892]
[1725521980983,0.11046566,57314.0,57313.0,0.62976892]
[1725521981203,0.00946566,57314.0,57313.0,1.22644892]
[1725521981446,0.01046566,57314.0,57313.0,1.22644892]
[1725521981918,0.01046566,57314.0,57313.0,1.24044892]
[1725521982168,0.01046566,57314.0,57313.0,0.99617692]
[1725521982888,0.01046566,57314.0,57313.0,0.99616734]
[1725521983097,0.01046566,57314.0,57313.0,0.99616375]
[1725521983313,0.01046566,57314.0,57313.0,1.22562485]
[1725521984415,0.01046566,57314.0,57313.0,1.46989685]
[1725521984871,0.01046566,57314.0,57313.0,1.24043575]
[1725521986493,0.01046566,57314.0,57313.0,1.22419922]
[1725521986746,0.01046566,57314.0,57313.0,1.24043631]
[1725521992042,0.01046566,57314.0,57313.0,0.99616431]
[1725521992946,0.01046566,57314.0,57313.0,0.24265631]
[1725521993167,0.01046566,57314.0,57313.0,0.3978819]
[1725521993608,0.01046566,57314.0,57313.0,0.24265631]
[1725521993830,0.37736861,57314.0,57313.0,0.04586709]
[1725521994085,0.37736861,57314.0,57313.0,0.05885454]
[1725521994306,0.62163661,57314.0,57313.0,0.05885454]
[1725521994521,0.86590461,57314.0,57313.0,0.05885454]
[1725521994748,0.86590461,57314.0,57313.0,0.04261745]
[1725521994987,0.86590461,57314.0,57313.0,0.05885454]
[1725521995459,0.86590461,57314.0,57313.0,0.04261745]
[1725521995905,0.86590461,57314.0,57313.0,0.02963]
[1725521996326,0.86590461,57314.0,57313.0,0.04586709]
[1725521996779,0.86590461,57314.0,57313.0,0.02963]
[1725521997008,0.89174756,57314.0,57313.0,0.04586882]
[1725521998348,0.89174756,57314.0,57313.0,0.05885988]
[1725521999020,0.64747956,57314.0,57313.0,0.05885988]
[1725521999231,0.40271061,57314.0,57313.0,0.05885988]
[1725521999448,0.89174756,57314.0,57313.0,0.05885988]
[1725522000753,1.48904756,57314.0,57313.0,0.05886122]
[1725522000974,1.48904756,57314.0,57313.0,0.17529467]
[1725522001204,1.73331556,57314.0,57313.0,0.04587016]
[1725522001438,1.83331556,57314.0,57313.0,0.16241288]
[1725522001675,1.83331556,57314.0,57313.0,0.04587016]
[1725522001889,1.83331556,57314.0,57313.0,0.14942075]
[1725522002165,1.68645471,57314.0,57313.0,0.04587016]
[1725522002396,1.68645471,57314.0,57313.0,0.10727202]
[1725522002890,1.68645471,57314.0,57313.0,0.02963]
[1725522003133,1.68645471,57314.0,57313.0,0.08137249]
[1725522003134,1.39294661,57314.0,57313.0,0.08137249]
[1725522003343,1.08915471,57314.0,57313.0,0.10727202]
[1725522003560,1.08915471,57314.0,57313.0,0.14941457]
[1725522003772,1.08915471,57314.0,57313.0,0.04586398]
[1725522004002,1.2360027,57314.0,57313.0,0.03186398]
[1725522004444,1.2360027,57314.0,57313.0,0.17528849]
[1725522004663,1.2360027,57314.0,57313.0,0.04586398]
[1725522004897,1.2350027,57314.0,57313.0,0.03186398]
[1725522005341,1.2350027,57314.0,57313.0,0.3567537]
[1725522005342,0.9907347,57314.0,57313.0,0.3567537]
[1725522005572,0.9917347,57314.0,57313.0,0.24136398]
[1725522006236,0.9917347,57314.0,57313.0,0.25435059]
[1725522006453,0.9917347,57314.0,57313.0,0.25434991]
[1725522006674,0.50271061,57314.0,57313.0,0.25434991]
[1725522009341,0.50271061,57314.0,57313.0,0.25434937]
[1725522009590,0.9917347,57314.0,57313.0,0.02963]
[1725522010677,0.9917347,57314.0,57313.0,0.15915178]
[1725522011332,0.9917347,57314.0,57313.0,0.02963]
[1725522011553,0.9917347,57314.0,57313.0,0.0426162]
[1725522012823,1.5753347,57314.0,57313.0,0.0426162]
[1725522013038,0.9917347,57314.0,57313.0,0.0426162]
[1725522013247,0.9917347,57314.0,57313.0,0.02963]
[1725522015328,0.9917347,57314.0,57313.0,0.04586575]
[1725522015768,0.9917347,57314.0,57313.0,0.05885438]
[1725522016476,0.13630861,57314.0,57313.0,0.23935438]
[1725522016657,0.25844261,57314.0,57313.0,0.23935438]
[1725522017366,0.50271061,57314.0,57313.0,0.23935438]
[1725522017842,0.50271061,57314.0,57313.0,0.22311863]
[1725522018067,0.50271061,57314.0,57313.0,0.23935479]
[1725522018723,0.25844261,57314.0,57313.0,0.23935479]
[1725522019155,0.50271061,57314.0,57313.0,0.23935479]
[1725522019383,0.01046566,57314.0,57313.0,0.36149079]
[1725522019604,0.01046566,57314.0,57313.0,0.38746713]
[1725522019823,0.01046566,57314.0,57313.0,0.38746646]
[1725522020261,0.00946566,57314.0,57313.0,0.61773846]
[1725522020473,0.00946566,57314.0,57313.0,1.50506441]
[1725522020710,0.01046566,57314.0,57313.0,1.2897912]
[1725522020943,0.01046566,57314.0,57313.0,1.33085147]
[1725522021200,0.01046566,57314.0,57313.0,1.31786351]
[1725522021420,0.01046566,57314.0,57313.0,1.33083464]
[1725522022265,0.01046566,57314.0,57313.0,1.30378298]
[1725522022524,0.01046566,57314.0,57313.0,1.33083527]
[1725522022737,0.01046566,57314.0,57313.0,1.08656327]
[1725522022951,0.01046566,57314.0,57313.0,0.43529127]
[1725522023380,0.01046566,57314.0,57313.0,0.40823898]
[1725522023608,0.01046566,57314.0,57313.0,1.01570944]
[1725522023609,0.13259966,57314.0,57313.0,1.01570944]
[1725522023824,0.01046566,57314.0,57313.0,1.1317353]
[1725522024076,0.01046566,57314.0,57313.0,2.14908298]
[1725522024310,0.01046566,57314.0,57313.0,2.53582022]
[1725522024535,0.01046566,57314.0,57313.0,2.57801939]
[1725522024752,0.01046566,57314.0,57313.0,2.56503459]
[1725522025443,0.00946566,57314.0,57313.0,2.58479585]
[1725522025675,2.11579821,57315.0,57314.0,0.61067]
[1725522025676,1.85909698,57315.0,57314.0,0.61067]
[1725522025896,1.85909698,57315.0,57314.0,1.39136745]
[1725522027010,1.85909698,57315.0,57314.0,1.40536745]
[1725522027228,1.85909698,57315.0,57314.0,1.41936745]
[1725522027719,1.85909698,57315.0,57314.0,1.37716828]
[1725522028158,1.85909698,57315.0,57314.0,1.45308615]
[1725522029453,1.85909698,57315.0,57314.0,1.43232229]
[1725522029903,1.98122898,57315.0,57314.0,0.05719918]
[1725522030147,1.86680486,57315.0,57314.0,0.05719918]
[1725522030789,1.86680486,57315.0,57314.0,0.60969049]
[1725522031028,1.85909698,57315.0,57314.0,1.36358256]
[1725522031237,1.86674372,57315.0,57314.0,1.38658256]
[1725522031451,1.86674372,57315.0,57314.0,1.98085056]
[1725522031677,1.85909698,57315.0,57314.0,1.98085056]
[1725522031899,1.86912394,57315.0,57314.0,2.00680539]
[1725522032800,1.86912394,57315.0,57314.0,1.76253739]
[1725522033009,1.86912394,57315.0,57314.0,1.73658256]
[1725522033449,1.86912394,57315.0,57314.0,1.76253739]
[1725522036028,1.86912394,57315.0,57314.0,0.51030139]
[1725522036270,1.86912394,57315.0,57314.0,0.61713979]
[1725522036515,1.86912394,57315.0,57314.0,0.63215601]
[1725522036726,1.86912394,57315.0,57314.0,0.86140779]
[1725522037159,1.86912394,57315.0,57314.0,0.63215601]
[1725522037378,1.86912394,57315.0,57314.0,0.83221455]
[1725522037593,1.86912394,57315.0,57314.0,0.86142041]
[1725522037871,1.86912394,57315.0,57314.0,0.61715241]
[1725522038093,1.86912394,57315.0,57314.0,0.08316663]
[1725522038319,2.11338794,57315.0,57314.0,0.08316663]
[1725522038554,2.41971994,57315.0,57314.0,0.08316663]
[1725522038747,3.07568394,57315.0,57314.0,0.08316663]
[1725522040590,3.07568394,57315.0,57314.0,0.08479663]
[1725522041042,3.07649894,57315.0,57314.0,0.08480173]
[1725522041488,3.07649894,57315.0,57314.0,0.07182135]
[1725522041919,2.83223494,57315.0,57314.0,0.07182135]
[1725522042348,2.23633494,57315.0,57314.0,0.07182135]
[1725522042777,2.23884931,57315.0,57314.0,0.07182135]
[1725522044748,2.23884931,57315.0,57314.0,0.07181274]
[1725522045422,2.23884931,57315.0,57314.0,0.08479181]
[1725522047218,2.24244323,57315.0,57314.0,0.15473881]
[1725522047937,1.87604723,57315.0,57314.0,0.34653881]
[1725522048119,1.87604723,57315.0,57314.0,0.30435607]
[1725522048323,1.87604723,57315.0,57314.0,0.34653737]
[1725522051587,1.87604723,57315.0,57314.0,0.34653724]
[1725522053329,1.87604723,57315.0,57314.0,0.57586734]
[1725522053538,1.87604723,57315.0,57314.0,0.60290664]
[1725522053759,1.87604723,57315.0,57314.0,0.34653724]
[1725522054624,1.87604723,57315.0,57314.0,0.58044383]
[1725522054872,1.87604723,57315.0,57314.0,0.81173379]
[1725522055075,1.87604723,57315.0,57314.0,0.82471293]
[1725522056213,1.87604723,57315.0,57314.0,0.82122365]
[1725522058398,1.87604723,57315.0,57314.0,0.83420182]
[1725522058604,1.87604723,57315.0,57314.0,0.82122268]
[1725522059859,1.87604723,57315.0,57314.0,0.62942268]
[1725522060525,1.87604723,57315.0,57314.0,0.87369068]
[1725522060960,1.87604723,57315.0,57314.0,0.87368475]
[1725522061600,1.87604723,57315.0,57314.0,1.5076874]
[1725522061809,1.87604723,57315.0,57314.0,2.1673554]
[1725522063575,1.87604723,57315.0,57314.0,2.16734167]
[1725522064656,1.87604723,57315.0,57314.0,1.07890567]
[1725522065076,1.87604723,57315.0,57314.0,0.97940302]
[1725522066160,1.60299037,57315.0,57314.0,0.97940302]
[1725522066345,1.60299037,57315.0,57314.0,0.15471771]
[1725522066597,1.60299037,57315.0,57314.0,0.27685171]
[1725522066598,1.59768077,57315.0,57314.0,0.27685171]
[1725522066826,2.53227677,57315.0,57314.0,0.15471771]
[1725522067292,2.77654077,57315.0,57314.0,0.15471771]
[1725522067578,2.77654077,57315.0,57314.0,0.05882453]
[1725522067798,3.28982976,57315.0,57314.0,0.05882453]
[1725522068013,3.38982976,57315.0,57314.0,0.18841801]
[1725522068234,3.36506877,57315.0,57314.0,0.05882453]
[1725522068698,3.36506877,57315.0,57314.0,0.13447494]
[1725522068926,3.36506877,57315.0,57314.0,0.14847494]
[1725522069158,3.37774233,57315.0,57314.0,0.08147239]